[Event "USA-ch Juniors 2018"]
[Site "Saint Louis"]
[Date "2018.07.14"]
[Round "3"]
[White "Patel, Advait"]
[Black "Liang, Awonder"]
[Result "1/2-1/2"]
[ECO "C54"]
[WhiteElo "2461"]
[BlackElo "2569"]
[Annotator "ChessBase"]
[PlyCount "60"]
[EventDate "2018.07.12"]
[EventType "tourn"]
[EventCountry "USA"]
[SourceTitle "playchess.com"]
[Source "ChessBase"]
[SourceQuality "1"]
[TimeControl "40/5400+30:1800+30"]

1. e4 {[%emt 0:00:00]} e5 {[%emt 0:00:00]} 2. Nf3 {[%emt 0:00:00]} Nc6 {[%emt 0:00:00]} 3. Bc4 {[%emt 0:00:13]} Bc5 {[%emt 0:00:22]} 4. c3 {[%emt 0:00:31]} Nf6 {[%emt 0:00:08]} 5. d3 {[%emt 0:00:16]} d6 {[%emt 0:00:16]} 6. Bb3 {[%emt 0:00:34]} Bb6 {[%emt 0:02:03]} 7. Nbd2 {[%emt 0:01:25]} Ne7 {[%emt 0:00:36]} 8. Nc4 {[%emt 0:01:19]} Ng6 {[%emt 0:00:28]} 9. O-O {[%emt 0:02:47]} O-O {[%emt 0:01:21]} 10. Re1 {[%emt 0:01:37]} Be6 {[%emt 0:04:32]} 11. Nxb6 {[%emt 0:19:12]} Bxb3 {[%emt 0:00:28]} 12. axb3 {[%emt 0:01:02]} axb6 {[%emt 0:00:23]} 13. Rxa8 {[%emt 0:00:24]} Qxa8 {[%emt 0:00:05]} 14. Bg5 {[%emt 0:00:19]} Qd8 {[%emt 0:12:56]} 15. Nh4 {[%emt 0:05:58]} Re8 {[%emt 0:14:10]} 16. Qf3 {[%emt 0:18:57]} h6 {[%emt 0:01:53]} 17. Bxf6 {[%emt 0:00:13]} Nxh4 {[%emt 0:00:08]} 18. Bxh4 {[%emt 0:00:18]} Qxh4 {[%emt 0:00:05]} 19. Ra1 {[%emt 0:00:42]} Qg5 {[%emt 0:04:40]} 20. Qe3 {[%emt 0:00:41]} Qe7 {[%emt 0:08:17]} 21. Ra7 {[%emt 0:02:24]} Rb8 {[%emt 0:00:51]} 22. g3 {[%emt 0:01:09]} Qd8 {[%emt 0:02:23]} 23. d4 {[%emt 0:02:16]} Ra8 {[%emt 0:05:43]} 24. Rxa8 {[%emt 0:00:07]} Qxa8 {[%emt 0:00:03]} 25. dxe5 {[%emt 0:00:14]} dxe5 {[%emt 0:00:06]} 26. Qd2 {[%emt 0:00:14]} c6 {[%emt 0:02:06]} 27. Kg2 {[%emt 0:00:54]} f6 {[%emt 0:00:53]} 28. Qd7 {[%emt 0:00:51]} Qa2 {[%emt 0:00:50]} 29. Qc8+ {[%emt 0:01:59]} Kh7 {[%emt 0:00:05]} 30. Qf5+ {[%emt 0:00:12]} Kh8 {[%emt 0:00:07]} 1/2-1/2